fUSD/lending_fUSD_20240105
["ID","MTS","AMOUNT","RATE_DAILY","PERIOD"]
[310342934,1704480678313,-500.0,0.00030684,2]
[310342935,1704480678322,-500.0,0.00030684,2]
[310342936,1704480678331,-500.0,0.00030684,2]
[310342937,1704480678340,-500.0,0.00030684,2]
[310342938,1704480678349,-500.0,0.00030684,2]
[310342939,1704480678359,-1828.54,0.00030684,2]
[310342940,1704480678368,-500.0,0.00030684,2]
[310342941,1704480678378,-601.49,0.00030684,2]
[310342942,1704480678387,-500.0,0.00030684,2]
[310342943,1704480678396,-500.0,0.00030684,2]
[310342944,1704480678404,-500.0,0.00030684,2]
[310342945,1704480678413,-500.0,0.00030684,2]
[310342946,1704480678422,-500.0,0.00030684,2]
[310342947,1704480678431,-2528.13,0.00030684,2]
[310342948,1704480678441,-500.0,0.00030684,2]
[310342949,1704480678450,-615.94,0.00030684,2]
[310342950,1704480678460,-500.0,0.00030684,2]
[310342951,1704480678469,-1186.12,0.00030684,2]
[310342952,1704480678480,-3513.44,0.00030684,2]
[310342953,1704480678489,-5022.3,0.00030684,2]
[310342954,1704480678498,-500.0,0.00030684,2]
[310342955,1704480678507,-1503.22,0.00030684,2]
[310342956,1704480678517,-500.0,0.00030684,2]
[310342957,1704480678527,-500.0,0.00030684,2]
[310342958,1704480678536,-285.93059649,0.00030684,2]
[310342959,1704480678545,-500.0,0.00030684,2]
[310342960,1704480678555,-500.0,0.00030684,2]
[310342961,1704480678565,-500.0,0.00030684,2]
[310342962,1704480678574,-652.87,0.00030684,2]
[310342963,1704480678582,-500.0,0.00030684,2]
[310342964,1704480678591,-500.0,0.00030684,2]
[310342965,1704480678601,-721.27,0.00030684,2]
[310342966,1704480678611,-500.0,0.00030684,2]
[310342967,1704480678620,-1250.89,0.00030684,2]
[310342968,1704480678630,-1522.08,0.00030684,2]
[310342969,1704480678639,-500.0,0.00030684,2]
[310342970,1704480678648,-500.0,0.00030684,2]
[310342971,1704480678657,-500.0,0.00030684,2]
[310342972,1704480678667,-500.0,0.00030684,2]
[310342973,1704480678676,-1815.16,0.00030684,2]
[310342974,1704480678685,-500.0,0.00030684,2]
[310342975,1704480678694,-3219.46,0.00030684,2]
[310342976,1704480678703,-500.0,0.00030684,2]
[310342977,1704480678713,-500.0,0.00030684,2]
[310342978,1704480678722,-3615.0,0.00030684,2]
[310342979,1704480678732,-596.14,0.00030684,2]
[310342980,1704480678741,-664.53,0.00030684,2]
[310342981,1704480678750,-652.7,0.00030684,2]
[310342982,1704480678759,-500.0,0.00030684,2]
[310342983,1704480678769,-527.79,0.00030684,2]
[310342984,1704480678778,-500.0,0.00030684,2]
[310342985,1704480678788,-500.0,0.00030684,2]
[310342986,1704480678797,-908.02,0.00030684,2]
[310342987,1704480678806,-917.41,0.00030684,2]
[310342988,1704480678815,-945.74,0.00030684,2]
[310342989,1704480678825,-3148.19,0.00030684,2]
[310342990,1704480678835,-500.0,0.00030684,2]
[310342991,1704480678844,-500.0,0.00030684,2]
[310342992,1704480678853,-1836.51,0.00030684,2]
[310342993,1704480678863,-500.0,0.00030684,2]
[310342994,1704480678872,-1113.69,0.00030684,2]
[310342995,1704480678881,-500.0,0.00030684,2]
[310342996,1704480678892,-2073.33,0.00030684,2]
[310342997,1704480678901,-2286.36,0.00030684,2]
[310342998,1704480678911,-500.0,0.00030684,2]
[310342999,1704480678920,-500.0,0.00030684,2]
[310343000,1704480678929,-2457.63,0.00030684,2]
[310343001,1704480678939,-604.19,0.00030684,2]
[310343002,1704480678948,-500.0,0.00030684,2]
[310343003,1704480678962,-4007.43,0.00030684,2]
[310343004,1704480678971,-2113.29,0.00030684,2]
[310343005,1704480678980,-2867.41,0.00030684,2]
[310343006,1704480678990,-500.0,0.00030684,2]
[310343007,1704480679001,-500.0,0.00030684,2]
[310343008,1704480679011,-500.0,0.00030684,2]
[310343009,1704480679020,-706.13,0.00030684,2]
[310343010,1704480679028,-500.0,0.00030684,2]
[310343011,1704480679040,-658.86,0.00030684,2]
[310343012,1704480679050,-500.0,0.00030684,2]
[310343013,1704480679059,-500.0,0.00030684,2]
[310343014,1704480679068,-500.0,0.00030684,2]
[310343015,1704480679078,-500.0,0.00030684,2]
[310343016,1704480679087,-500.0,0.00030684,2]
[310343017,1704480679096,-1268.94,0.00030684,2]
[310343018,1704480679106,-500.0,0.00030684,2]
[310343019,1704480679115,-19373.23,0.00030684,2]
[310343020,1704480679124,-500.0,0.00030684,2]
[310343021,1704480679134,-2216.67,0.00030684,2]
[310343022,1704480679143,-500.0,0.00030684,2]
[310343023,1704480679152,-500.0,0.00030684,2]
[310343024,1704480679162,-3080.48,0.00030684,2]
[310343025,1704480679172,-500.0,0.00030684,2]
[310343026,1704480679182,-1327.94,0.00030684,2]
[310343027,1704480679191,-500.0,0.00030684,2]
[310343028,1704480679201,-4277.93,0.00030684,2]
[310343029,1704480679211,-500.0,0.00030684,2]
[310343030,1704480679221,-500.0,0.00030684,2]
[310343031,1704480679230,-500.0,0.00030684,2]
[310343032,1704480679240,-500.0,0.00030684,2]
[310343033,1704480679249,-500.0,0.00030684,2]
[310343034,1704480679259,-500.0,0.00030684,2]
[310343035,1704480679269,-500.0,0.00030684,2]
[310343036,1704480679278,-500.0,0.00030684,2]
[310343037,1704480679288,-500.0,0.00030684,2]
[310343038,1704480679297,-1000.0,0.00030684,2]
[310343039,1704480679307,-500.0,0.00030684,2]
[310343040,1704480679316,-1188.16,0.00030684,2]
[310343041,1704480679326,-500.0,0.00030684,2]
[310343042,1704480679335,-500.0,0.00030684,2]
[310343043,1704480679345,-1522.78,0.00030684,2]
[310343044,1704480679354,-500.0,0.00030684,2]
[310343045,1704480679364,-500.0,0.00030684,2]
[310343046,1704480679373,-500.0,0.00030684,2]
[310343047,1704480679382,-500.0,0.00030684,2]
[310343048,1704480679391,-1774.93,0.00030684,2]
[310343049,1704480679401,-1336.04,0.00030684,2]
[310343050,1704480679410,-534.19,0.00030684,2]
[310343051,1704480679419,-28273.93,0.00030684,2]
[310343052,1704480679428,-2530.59,0.00030684,2]
[310343053,1704480679437,-500.0,0.00030684,2]
[310343054,1704480679446,-500.0,0.00030684,2]
[310343055,1704480679455,-905.86,0.00030684,2]
[310343056,1704480679463,-2239.88,0.00030684,2]
[310343057,1704480679473,-1930.92,0.00030684,2]
[310343058,1704480679483,-558.64,0.00030684,2]
[310343059,1704480679493,-500.0,0.00030684,2]
[310343060,1704480679501,-500.0,0.00030684,2]
[310343061,1704480679510,-500.0,0.00030684,2]
[310343062,1704480679520,-500.0,0.00030684,2]
[310343063,1704480679529,-3674.01,0.00030684,2]
[310343064,1704480679540,-500.0,0.00030684,2]
[310343065,1704480679549,-500.0,0.00030684,2]
[310343066,1704480679560,-1097.58,0.00030684,2]
[310343067,1704480679570,-2537.94,0.00030684,2]
[310343068,1704480679580,-500.0,0.00030684,2]
[310343069,1704480679590,-211.05564037,0.00030684,2]
[310343070,1704480679600,-528.08281009,0.00030684,2]
[310343071,1704480679610,-500.0,0.00030684,2]
[310343072,1704480679620,-500.0,0.00030684,2]
[310343073,1704480679630,-597.02,0.00030684,2]
[310343074,1704480679640,-3115.93,0.00030684,2]
[310343075,1704480679650,-500.0,0.00030684,2]
[310343076,1704480679660,-500.0,0.00030684,2]
[310343077,1704480679671,-691.2,0.00030684,2]
[310343078,1704480679680,-500.0,0.00030684,2]
[310343079,1704480679690,-870.18,0.00030684,2]
[310343080,1704480679699,-3107.08,0.00030684,2]
[310343081,1704480679709,-500.0,0.00030684,2]
[310343082,1704480679719,-500.0,0.00030684,2]
[310343083,1704480679729,-637.81,0.00030684,2]
[310343084,1704480679739,-5515.69,0.00030684,2]
[310343085,1704480679749,-500.0,0.00030684,2]
[310343086,1704480679759,-1169.84,0.00030684,2]
[310343087,1704480679769,-2010.84,0.00030684,2]
[310343088,1704480679779,-500.0,0.00030684,2]
[310343089,1704480679788,-3011.55,0.00030684,2]
[310343090,1704480679797,-500.0,0.00030684,2]
[310343091,1704480679807,-1822.26,0.00030684,2]
[310343092,1704480679816,-500.0,0.00030684,2]
[310343093,1704480679826,-1884.38,0.00030684,2]
[310343094,1704480679836,-500.0,0.00030684,2]
[310343095,1704480679846,-500.0,0.00030684,2]
[310343096,1704480679855,-500.0,0.00030684,2]
[310343097,1704480679865,-1549.13,0.00030684,2]
[310343098,1704480679875,-500.0,0.00030684,2]
[310343099,1704480679885,-500.0,0.00030684,2]
[310343100,1704480679894,-582.33,0.00030684,2]
[310343101,1704480679904,-1113.13,0.00030684,2]
[310343102,1704480679914,-500.0,0.00030684,2]
[310343103,1704480679923,-500.0,0.00030684,2]
[310343104,1704480679934,-500.0,0.00030684,2]
[310343105,1704480679944,-734.97,0.00030684,2]
[310343106,1704480679955,-2359.55,0.00030684,2]
[310343107,1704480679965,-500.0,0.00030684,2]
[310343108,1704480679976,-1634.85,0.00030684,2]
[310343109,1704480679986,-500.0,0.00030684,2]
[310343110,1704480679996,-6257.57,0.00030684,2]
[310343111,1704480680006,-500.0,0.00030684,2]
[310343112,1704480680016,-500.0,0.00030684,2]
[310343113,1704480680026,-2136.09,0.00030684,2]
[310343114,1704480680037,-500.0,0.00030684,2]
[310343115,1704480680047,-500.0,0.00030684,2]
[310343116,1704480680057,-1571.88,0.00030684,2]
[310343117,1704480680067,-500.0,0.00030684,2]
[310343118,1704480680077,-2605.04,0.00030684,2]
[310343119,1704480680088,-500.0,0.00030684,2]
[310343120,1704480680098,-4638.74,0.00030684,2]
[310343121,1704480680108,-500.0,0.00030684,2]
[310343122,1704480680118,-618.64,0.00030684,2]
[310343123,1704480680128,-659.85,0.00030684,2]
[310343124,1704480680139,-997.06,0.00030684,2]
[310343125,1704480680149,-500.0,0.00030684,2]
[310343126,1704480680158,-500.0,0.00030684,2]
[310343127,1704480680169,-1883.22,0.00030684,2]
[310343128,1704480680179,-500.0,0.00030684,2]
[310343129,1704480680189,-500.0,0.00030684,2]
[310343130,1704480680199,-2426.1,0.00030684,2]
[310343131,1704480680209,-7992.41,0.00030684,2]
[310343132,1704480680219,-578.9,0.00030684,2]
[310343133,1704480680229,-1186.35,0.00030684,2]
[310343134,1704480680239,-1347.71,0.00030684,2]
[310343135,1704480680248,-500.0,0.00030684,2]
[310343136,1704480680259,-2756.92,0.00030684,2]
[310343137,1704480680268,-500.0,0.00030684,2]
[310343138,1704480680278,-500.0,0.00030684,2]
[310343139,1704480680288,-500.0,0.00030684,2]
[310343140,1704480680298,-500.0,0.00030684,2]
[310343141,1704480680309,-206.254026,0.00030684,7]
[310343142,1704480680319,-206.254026,0.00030684,7]
[310343143,1704480680330,-206.254026,0.00030684,7]
[310343144,1704480680340,-206.254026,0.00030684,7]
[310343145,1704480680351,-151.0,0.00030684,7]
[310343146,1704480680361,-151.0,0.00030684,7]
[310343147,1704480680372,-151.0,0.00030684,7]
[310343148,1704480680382,-151.0,0.00030684,7]
[310343149,1704480680392,-1260.0,0.00030684,7]
[310343150,1704480680402,-1260.0,0.00030684,7]
[310343151,1704480680412,-1260.0,0.00030684,7]
[310343152,1704480680421,-1260.0,0.00030684,7]
[310343153,1704480680431,-150.0,0.00030696,2]
[310343154,1704480680441,-800.0,0.00030709,5]
[310343155,1704480680450,-150.0,0.00030713,2]
[310343156,1704480680459,-150.0,0.0003072,2]
[310343157,1704480680469,-3000.0,0.0003072,2]
[310343158,1704480680480,-150.0,0.00030725,2]
[310343159,1704480680490,-807.81866144,0.00030734,2]
[310343160,1704480680500,-150.0,0.00030738,2]
[310343161,1704480680510,-2434.24593452,0.0003074,2]
[310343162,1704480680520,-150.0,0.00030741,2]
[310343163,1704480680530,-150.0,0.00030753,2]
[310343164,1704480680539,-1500.0,0.00030761,2]
[310343165,1704480680549,-150.0,0.00030774,2]
[310343166,1704480680560,-150.0,0.0003081,2]
[310343167,1704480680569,-150.0,0.00030816,2]
[310343168,1704480680579,-150.0,0.00030825,2]
[310343169,1704480680588,-150.0,0.00030848,2]
[310343170,1704480680598,-1500.0,0.00030853,2]
[310343171,1704480680608,-1500.0,0.00030858,2]
[310343172,1704480680618,-150.0,0.00030866,2]
[310343173,1704480680627,-150.0,0.00030878,2]
[310343174,1704480680637,-150.0,0.00030909,2]
[310343175,1704480680646,-150.01,0.00030957,2]
[310343176,1704480680656,-3286.93466783,0.00030957,2]
[310343177,1704480680666,-545.28,0.00030957,2]
[310343178,1704480680676,-721.92,0.00030957,2]
[310343179,1704480680686,-721.92,0.00030957,2]
[310343180,1704480680696,-721.92,0.00030957,2]
[310343181,1704480680706,-721.92,0.00030957,2]
[310343182,1704480680715,-721.92,0.00030957,2]
[310343183,1704480680725,-721.96,0.00030957,2]
[310343184,1704480680735,-150.0,0.00030957,2]
[310343185,1704480680745,-500.0,0.00030958,2]
[310343186,1704480680754,-289.48011913,0.00030958,2]
[310343187,1704480680764,-500.0,0.00030958,2]
[310343188,1704480680774,-500.0,0.00030958,2]
[310343189,1704480680783,-500.0,0.00030958,2]
[310343190,1704480680793,-500.0,0.00030958,2]
[310343191,1704480680803,-500.0,0.00030958,2]
[310343192,1704480680812,-500.0,0.00030958,2]
[310343193,1704480680822,-500.0,0.00030958,2]
[310343194,1704480680831,-500.0,0.00030958,2]
[310343195,1704480680842,-500.0,0.00030958,2]
[310343196,1704480680851,-500.0,0.00030958,2]
[310343197,1704480680861,-500.0,0.00030958,2]
[310343198,1704480680871,-500.0,0.00030958,2]
[310343199,1704480680880,-210.82904263,0.00030958,2]
[310343200,1704480680890,-500.0,0.00030958,2]
[310343201,1704480680900,-425.84125848,0.00030958,2]
[310343202,1704480680910,-475.83251765,0.00030958,2]
[310343203,1704480680919,-500.0,0.00030958,2]
[310343204,1704480680929,-318.56180535,0.00030958,2]
[310343205,1704480681703,-496.12525846,0.00030136,2]
[310343206,1704480681717,-3.87474154,0.00030136,2]
[310343207,1704480681727,-181.43819465,0.00030958,2]
[310343208,1704480681736,-268.56546381,0.00030958,2]
[310343209,1704480681748,-231.43453619,0.00030958,2]
[310343210,1704480681758,-65.92766811,0.00030958,2]
[310343211,1704480681770,-424.54446131,0.00030958,2]
[310343212,1704480681782,-9.52787058,0.00030958,2]
[310343213,1704480681792,-500.0,0.00030958,2]
[310343214,1704480681801,-500.0,0.00030958,2]
[310343215,1704480681811,-500.0,0.00030958,2]
[310343216,1704480681821,-500.0,0.00030958,2]
[310343217,1704480681830,-500.0,0.00030958,2]
[310343218,1704480681840,-500.0,0.00030958,2]
[310343219,1704480681850,-500.0,0.00030958,2]
[310343220,1704480681859,-500.0,0.00030958,2]
[310343221,1704480681869,-190.81256376,0.00030958,2]
[310343222,1704480681878,-159.53431083,0.00030958,2]
[310343223,1704480681887,-500.0,0.00030958,2]
[310343224,1704480681897,-585.41688328,0.00030958,2]
[310343225,1704480681908,-500.0,0.00030958,2]
[310343226,1704480681919,-500.0,0.00030958,2]
[310343227,1704480681930,-500.0,0.00030958,2]
[310343228,1704480681940,-500.0,0.00030958,2]
[310343229,1704480681950,-500.0,0.00030958,2]
[310343230,1704480681960,-500.0,0.00030958,2]
[310343231,1704480681970,-500.0,0.00030958,2]
[310343232,1704480681980,-500.0,0.00030958,2]
[310343233,1704480681991,-500.0,0.00030958,2]
[310343234,1704480682001,-500.0,0.00030958,2]
[310343235,1704480682011,-285.95837155,0.00030958,2]
[310343236,1704480682087,-185.7622564,0.00028622,2]
[310343237,1704480682097,-214.04162845,0.00030958,2]
[310343238,1704480682107,-500.0,0.00030958,2]
[310343239,1704480682117,-500.0,0.00030958,2]
[310343240,1704480682126,-500.0,0.00030958,2]
[310343241,1704480682136,-500.0,0.00030958,2]
[310343242,1704480682145,-500.0,0.00030958,2]
[310343243,1704480682155,-187.55350218,0.00030958,2]
[310343244,1704480682165,-500.0,0.00030958,2]
[310343245,1704480682174,-500.0,0.00030958,2]
[310343246,1704480682184,-500.0,0.00030958,2]
[310343247,1704480682193,-500.0,0.00030958,2]
[310343248,1704480682203,-500.0,0.00030958,2]
[310343249,1704480682212,-500.0,0.00030958,2]
[310343250,1704480682222,-500.0,0.00030958,2]
[310343251,1704480682231,-500.0,0.00030958,2]
[310343252,1704480682241,-500.0,0.00030958,2]
[310343253,1704480682250,-500.0,0.00030958,2]
[310343254,1704480682259,-500.0,0.00030958,2]
[310343255,1704480682272,-500.0,0.00030958,2]
[310343256,1704480682282,-500.0,0.00030958,2]
[310343257,1704480682292,-500.0,0.00030958,2]
[310343258,1704480682300,-500.0,0.00030958,2]
[310343259,1704480682310,-500.0,0.00030958,2]
[310343260,1704480682319,-500.0,0.00030958,2]
[310343261,1704480682329,-500.0,0.00030958,2]
[310343262,1704480682339,-624.08,0.00030958,2]
[310343263,1704480682349,-617.33263476,0.00030958,2]
[310343264,1704480682358,-500.0,0.00030958,2]
[310343265,1704480682368,-500.0,0.00030958,2]
[310343266,1704480682378,-500.0,0.00030958,2]
[310343267,1704480682388,-500.0,0.00030958,2]
[310343268,1704480682398,-500.0,0.00030958,2]
[310343269,1704480682407,-500.0,0.00030958,2]
[310343270,1704480682417,-500.0,0.00030958,2]
[310343271,1704480682426,-500.0,0.00030958,2]
[310343272,1704480682436,-200.88878199,0.00030958,2]
[310343273,1704480682445,-301.41587977,0.00030958,2]
[310343274,1704480682454,-500.0,0.00030958,2]
[310343275,1704480682462,-500.0,0.00030958,2]
[310343276,1704480682471,-500.0,0.00030958,2]
[310343277,1704480682481,-500.0,0.00030958,2]
[310343278,1704480682491,-500.0,0.00030958,2]
[310343279,1704480682500,-500.0,0.00030958,2]
[310343280,1704480682509,-500.0,0.00030958,2]
[310343281,1704480682518,-500.0,0.00030958,2]
[310343282,1704480682529,-500.0,0.00030958,2]
[310343283,1704480682538,-500.0,0.00030958,2]
[310343284,1704480682547,-500.0,0.00030958,2]
[310343285,1704480682557,-500.0,0.00030958,2]
[310343286,1704480682566,-500.0,0.00030958,2]
[310343287,1704480682575,-500.0,0.00030958,2]
[310343288,1704480682584,-500.0,0.00030958,2]
[310343289,1704480682594,-500.0,0.00030958,2]
[310343290,1704480682602,-500.0,0.00030958,2]
[310343291,1704480682612,-500.0,0.00030958,2]
[310343292,1704480682622,-506.171711,0.00030958,2]
[310343293,1704480682633,-500.0,0.00030958,2]
[310343294,1704480682642,-500.0,0.00030958,2]
[310343295,1704480682652,-500.0,0.00030958,2]
[310343296,1704480682662,-500.0,0.00030958,2]
[310343297,1704480682672,-500.0,0.00030958,2]
[310343298,1704480682681,-500.0,0.00030958,2]
[310343299,1704480682691,-500.0,0.00030958,2]
[310343300,1704480682701,-525.32,0.00030958,2]
[310343301,1704480682710,-500.0,0.00030958,2]
[310343302,1704480682720,-500.0,0.00030958,2]
[310343303,1704480682729,-500.0,0.00030958,2]
[310343304,1704480682739,-500.0,0.00030958,2]
[310343305,1704480682757,-500.0,0.00030958,2]
[310343306,1704480682767,-500.0,0.00030958,2]
[310343307,1704480682777,-500.0,0.00030958,2]
[310343308,1704480682787,-500.0,0.00030958,2]
[310343309,1704480682798,-500.0,0.00030958,2]
[310343310,1704480682808,-500.0,0.00030958,2]
[310343311,1704480682818,-563.01207386,0.00030958,2]
[310343312,1704480682829,-500.0,0.00030958,2]
[310343313,1704480682839,-500.0,0.00030958,2]
[310343314,1704480682849,-500.0,0.00030958,2]
[310343315,1704480682858,-500.0,0.00030958,2]
[310343316,1704480682868,-500.0,0.00030958,2]
[310343317,1704480682878,-500.0,0.00030958,2]
[310343318,1704480682889,-500.0,0.00030958,2]
[310343319,1704480682899,-500.0,0.00030958,2]
[310343320,1704480682909,-500.0,0.00030958,2]
[310343321,1704480682919,-500.0,0.00030958,2]
[310343322,1704480682928,-500.0,0.00030958,2]
[310343323,1704480682938,-191.99641091,0.00030958,2]
[310343324,1704480682947,-500.0,0.00030958,2]
[310343325,1704480682959,-500.0,0.00030958,2]
[310343326,1704480682969,-500.0,0.00030958,2]
[310343327,1704480682979,-500.0,0.00030958,2]
[310343328,1704480682989,-500.0,0.00030958,2]
[310343329,1704480682999,-500.0,0.00030958,2]
[310343330,1704480683008,-500.0,0.00030958,2]
[310343331,1704480683017,-500.0,0.00030958,2]
[310343332,1704480683027,-500.0,0.00030958,2]
[310343333,1704480683037,-500.0,0.00030958,2]
[310343334,1704480683048,-500.0,0.00030958,2]
[310343335,1704480683058,-500.0,0.00030958,2]
[310343336,1704480683067,-500.0,0.00030958,2]
[310343337,1704480683078,-500.0,0.00030958,2]
[310343338,1704480683089,-500.0,0.00030958,2]
[310343339,1704480683099,-500.0,0.00030958,2]
[310343340,1704480683109,-500.0,0.00030958,2]
[310343341,1704480683118,-500.0,0.00030958,2]
[310343342,1704480683128,-500.0,0.00030958,2]
[310343343,1704480683138,-500.0,0.00030958,2]
[310343344,1704480683147,-500.0,0.00030958,2]
[310343345,1704480683156,-500.0,0.00030958,2]
[310343346,1704480683166,-500.0,0.00030958,2]
[310343347,1704480683175,-500.0,0.00030958,2]
[310343348,1704480683185,-500.0,0.00030958,2]
[310343349,1704480683194,-500.0,0.00030958,2]
[310343350,1704480683203,-500.0,0.00030958,2]
[310343351,1704480683213,-500.0,0.00030958,2]
[310343352,1704480683223,-500.0,0.00030958,2]
[310343353,1704480683233,-500.0,0.00030958,2]
[310343354,1704480683243,-955.98,0.00030958,2]
[310343355,1704480683252,-500.0,0.00030958,2]
[310343356,1704480683262,-500.0,0.00030958,2]
[310343357,1704480683271,-500.0,0.00030958,2]
[310343358,1704480683280,-500.0,0.00030958,2]
[310343359,1704480683289,-500.0,0.00030958,2]
[310343360,1704480683299,-500.0,0.00030958,2]
[310343361,1704480683308,-500.0,0.00030958,2]
[310343362,1704480683318,-500.0,0.00030958,2]
[310343363,1704480683327,-500.0,0.00030958,2]
[310343364,1704480683337,-500.0,0.00030958,2]
[310343365,1704480683346,-500.0,0.00030958,2]
[310343366,1704480683356,-500.0,0.00030958,2]
[310343367,1704480683365,-500.0,0.00030958,2]
[310343368,1704480683374,-500.0,0.00030958,2]
[310343369,1704480683383,-500.0,0.00030958,2]
[310343370,1704480683392,-500.0,0.00030958,2]
[310343371,1704480683402,-500.0,0.00030958,2]
[310343372,1704480683411,-500.0,0.00030958,2]
[310343373,1704480683420,-500.0,0.00030958,2]
[310343374,1704480683430,-500.0,0.00030958,2]
[310343375,1704480683440,-500.0,0.00030958,2]
[310343376,1704480683449,-500.0,0.00030958,2]
[310343377,1704480683458,-500.0,0.00030958,2]
[310343378,1704480683468,-500.0,0.00030958,2]
[310343379,1704480683477,-500.0,0.00030958,2]
[310343380,1704480683487,-500.0,0.00030958,2]
[310343381,1704480683497,-500.0,0.00030958,2]
[310343382,1704480683507,-500.0,0.00030958,2]
[310343383,1704480683516,-500.0,0.00030958,2]
[310343384,1704480683526,-500.0,0.00030958,2]
[310343385,1704480683538,-500.0,0.00030958,2]
[310343386,1704480683549,-500.0,0.00030958,2]
[310343387,1704480683558,-533.04895748,0.00030958,2]
[310343388,1704480683567,-500.0,0.00030958,2]
[310343389,1704480683576,-500.0,0.00030958,2]
[310343390,1704480683585,-500.0,0.00030958,2]
[310343391,1704480683595,-500.0,0.00030958,2]
[310343392,1704480683605,-500.0,0.00030958,2]
[310343393,1704480683615,-500.0,0.00030958,2]
[310343394,1704480683624,-500.0,0.00030958,2]
[310343395,1704480683634,-500.0,0.00030958,2]
[310343396,1704480683643,-500.0,0.00030958,2]
[310343397,1704480683653,-500.0,0.00030958,2]
[310343398,1704480683662,-582.51,0.00030958,2]
[310343399,1704480683672,-500.0,0.00030958,2]
[310343400,1704480683682,-500.0,0.00030958,2]
[310343401,1704480683691,-500.0,0.00030958,2]
[310343402,1704480683700,-500.0,0.00030958,2]
[310343403,1704480683710,-500.0,0.00030958,2]
[310343404,1704480683719,-500.0,0.00030958,2]
[310343405,1704480683728,-538.64675219,0.00030958,2]
[310343406,1704480683737,-500.0,0.00030958,2]
[310343407,1704480683747,-500.0,0.00030958,2]
[310343408,1704480683757,-500.0,0.00030958,2]
[310343409,1704480683766,-500.0,0.00030958,2]
[310343410,1704480683776,-500.0,0.00030958,2]
[310343411,1704480683784,-446.84795357,0.00030958,2]
[310343412,1704480683794,-500.0,0.00030958,2]
[310343413,1704480683804,-500.0,0.00030958,2]
[310343414,1704480683813,-500.0,0.00030958,2]
[310343415,1704480683822,-500.0,0.00030958,2]
[310343416,1704480683832,-519.53468915,0.00030958,2]
[310343417,1704480683840,-500.0,0.00030958,2]
[310343418,1704480683849,-500.0,0.00030958,2]
[310343419,1704480683858,-500.0,0.00030958,2]
[310343420,1704480683868,-500.0,0.00030958,2]
[310343421,1704480683878,-500.0,0.00030958,2]
[310343422,1704480683887,-500.0,0.00030958,2]
[310343423,1704480683896,-500.0,0.00030958,2]
[310343424,1704480683905,-500.0,0.00030958,2]
[310343425,1704480683914,-500.0,0.00030958,2]
[310343426,1704480683923,-500.0,0.00030958,2]
[310343427,1704480683933,-500.0,0.00030958,2]
[310343428,1704480683943,-500.0,0.00030958,2]
[310343429,1704480683951,-500.0,0.00030958,2]
[310343430,1704480683960,-500.0,0.00030958,2]
[310343431,1704480683969,-500.0,0.00030958,2]
[310343432,1704480683978,-500.0,0.00030958,2]
[310343433,1704480683988,-500.0,0.00030958,2]